Workbook

Sheet תרגילי כיתה 1-6
I4: שאלה 1 | L4: 0 | M4: 1 | N4: 2
L5: 150- | M5: 80 | N5: 130 | O5: A | P5: =IRR(Q5:Q7) -> 23.51% | Q5: -₪ 150.00 | R5: -210
L6: 210- | M6: 140 | N6: 90 | O6: B | P6: =IRR(R5:R7) -> 6.80% | Q6: 80 | R6: 140
Q7: 130 | R7: 90
L8: א. חשב את הערך הנוכחי לשני הפרוייקטים בהנחה ומחיר הההון 5%
L9: ב. מה שת"פ הפרוייקטים?
L10: ג. איזה פרוייקט עדיף לפי כל קריטריון?
M12: NPVB | N12: NPVA
M13: =NPV(O13,$M$6:$N$6)-210 -> ₪ 20.00 | N13: =NPV(O13,$M$5:$N$5)-150 -> ₪ 60.00 | O13: 0.00%
M14: =NPV(O14,$M$6:$N$6)-210 -> ₪ 16.84 | N14: =NPV(O14,$M$5:$N$5)-150 -> ₪ 56.65 | O14: 1.00%
M15: ₪ 13.76 | N15: ₪ 53.38 | O15: 2.00%
M16: ₪ 10.76 | N16: ₪ 50.21 | O16: 3.00%
M17: ₪ 7.83 | N17: ₪ 47.12 | O17: 4.00%
M18: ₪ 4.97 | N18: ₪ 44.10 | O18: 5.00%
M19: ₪ 2.18 | N19: ₪ 41.17 | O19: 6.00%
M20: ₪ -0.55 | N20: ₪ 38.31 | O20: 7.00%
M21: ₪ -3.21 | N21: ₪ 35.53 | O21: 8.00%
M22: ₪ -5.81 | N22: ₪ 32.81 | O22: 9.00%
M23: ₪ -8.35 | N23: ₪ 30.17 | O23: 10.00%
M24: ₪ -10.83 | N24: ₪ 27.58 | O24: 11.00%
M25: ₪ -13.25 | N25: ₪ 25.06 | O25: 12.00%
M26: ₪ -15.62 | N26: ₪ 22.61 | O26: 13.00%
M27: ₪ -17.94 | N27: ₪ 20.21 | O27: 14.00%
M28: ₪ -20.21 | N28: ₪ 17.86 | O28: 15.00%
M29: ₪ -22.43 | N29: ₪ 15.58 | O29: 16.00%
M30: ₪ -24.60 | N30: ₪ 13.34 | O30: 17.00%
M31: ₪ -26.72 | N31: ₪ 11.16 | O31: 18.00%
M32: ₪ -28.80 | N32: ₪ 9.03 | O32: 19.00%
M33: ₪ -30.83 | N33: ₪ 6.94 | O33: 20.00%
M34: ₪ -32.83 | N34: ₪ 4.91 | O34: 21.00%
M35: ₪ -34.78 | N35: ₪ 2.92 | O35: 22.00%
M36: ₪ -36.69 | N36: ₪ 0.97 | O36: 23.00%
M37: ₪ -38.56 | N37: ₪ -0.94 | O37: 24.00%
M38: ₪ -40.40 | N38: ₪ -2.80 | O38: 25.00%
M39: ₪ -42.20 | N39: ₪ -4.62 | O39: 26.00%
M40: ₪ -43.96 | N40: ₪ -6.41 | O40: 27.00%
M41: ₪ -45.69 | N41: ₪ -8.15 | O41: 28.00%
M42: ₪ -47.39 | N42: ₪ -9.86 | O42: 29.00%
M43: ₪ -49.05 | N43: ₪ -11.54 | O43: 30.00%
M44: ₪ -50.69 | N44: ₪ -13.18 | O44: 31.00%
M45: ₪ -52.29 | N45: ₪ -14.78 | O45: 32.00%
M46: ₪ -53.86 | N46: ₪ -16.36 | O46: 33.00%
M47: ₪ -55.40 | N47: ₪ -17.90 | O47: 34.00%
M48: ₪ -56.91 | N48: ₪ -19.41 | O48: 35.00%
M49: ₪ -58.40 | N49: ₪ -20.89 | O49: 36.00%
M50: ₪ -59.86 | N50: ₪ -22.34 | O50: 37.00%
M51: ₪ -61.29 | N51: ₪ -23.77 | O51: 38.00%
M52: ₪ -62.70 | N52: ₪ -25.16 | O52: 39.00%
M53: ₪ -64.08 | N53: ₪ -26.53 | O53: 40.00%
M54: ₪ -65.44 | N54: ₪ -27.87 | O54: 41.00%
M55: ₪ -66.77 | N55: ₪ -29.19 | O55: 42.00%
M56: ₪ -68.09 | N56: ₪ -30.48 | O56: 43.00%
M57: ₪ -69.38 | N57: ₪ -31.75 | O57: 44.00%
M58: ₪ -70.64 | N58: ₪ -33.00 | O58: 45.00%
M59: ₪ -71.89 | N59: ₪ -34.22 | O59: 46.00%
I62: שאלה 2 | L62: נתונים פרויקטים מסוג A ו-B. הפרויקטים לתקופה של שנתיים, סופיים, ומוציאים זה את זה.
L65: 2 | M65: 1 | N65: 0 | P65: =IRR(R67:R69) -> 20.00% | Q65: =NPV(R65,R68:R69)-200 -> 20.11514498 | R65: 13.90%
L66: 240 | M66: 40 | N66: -200 | O66: A | P66: =IRR(Q67:Q69) -> 22.96% | Q66: =NPV(R65,Q68:Q69)-204 -> 19.76882822
L67: 62.5 | M67: 200 | N67: -204 | O67: B | Q67: -204 | R67: -200
Q68: 200 | R68: 40
L69: קיבלתם הצעה מבנק "מאגדים" להלוואה בריבית של 13.9%, באיזה פרויקט תעדיפו לבחור? | Q69: 62.5 | R69: 240
M71: NPVB | N71: NPVA
M72: =NPV(O72,$Q$68:Q$69)-204 -> ₪ 58.50 | N72: =NPV(O72,$R$68:$R$69)-200 -> ₪ 80.00 | O72: 0.00%
M73: =NPV(O73,$Q$68:Q$69)-204 -> ₪ 55.29 | N73: =NPV(O73,$R$68:$R$69)-200 -> ₪ 74.88 | O73: 1.00%
M74: =NPV(O74,$Q$68:Q$69)-204 -> ₪ 52.15 | N74: ₪ 69.90 | O74: 2.00%
M75: =NPV(O75,$Q$68:Q$69)-204 -> ₪ 49.09 | N75: ₪ 65.06 | O75: 3.00%
M76: =NPV(O76,$Q$68:Q$69)-204 -> ₪ 46.09 | N76: ₪ 60.36 | O76: 4.00%
M77: =NPV(O77,$Q$68:Q$69)-204 -> ₪ 43.17 | N77: ₪ 55.78 | O77: 5.00%
M78: =NPV(O78,$Q$68:Q$69)-204 -> ₪ 40.30 | N78: ₪ 51.33 | O78: 6.00%
M79: =NPV(O79,$Q$68:Q$69)-204 -> ₪ 37.51 | N79: ₪ 47.01 | O79: 7.00%
M80: =NPV(O80,$Q$68:Q$69)-204 -> ₪ 34.77 | N80: ₪ 42.80 | O80: 8.00%
M81: =NPV(O81,$Q$68:Q$69)-204 -> ₪ 32.09 | N81: ₪ 38.70 | O81: 9.00%
M82: =NPV(O82,$Q$68:Q$69)-204 -> ₪ 29.47 | N82: ₪ 34.71 | O82: 10.00%
M83: =NPV(O83,$Q$68:Q$69)-204 -> ₪ 26.91 | N83: ₪ 30.83 | O83: 11.00%
M84: =NPV(O84,$Q$68:Q$69)-204 -> ₪ 24.40 | N84: ₪ 27.04 | O84: 12.00%
M85: =NPV(O85,$Q$68:Q$69)-204 -> ₪ 21.94 | N85: ₪ 23.35 | O85: 13.00%
M86: =NPV(O86,$Q$68:Q$69)-204 -> ₪ 19.53 | N86: ₪ 19.76 | O86: 14.00%
M87: =NPV(O87,$Q$68:Q$69)-204 -> ₪ 17.17 | N87: ₪ 16.26 | O87: 15.00%
M88: =NPV(O88,$Q$68:Q$69)-204 -> ₪ 14.86 | N88: ₪ 12.84 | O88: 16.00%
M89: =NPV(O89,$Q$68:Q$69)-204 -> ₪ 12.60 | N89: ₪ 9.51 | O89: 17.00%
M90: =NPV(O90,$Q$68:Q$69)-204 -> ₪ 10.38 | N90: ₪ 6.26 | O90: 18.00%
M91: =NPV(O91,$Q$68:Q$69)-204 -> ₪ 8.20 | N91: ₪ 3.09 | O91: 19.00%
M92: =NPV(O92,$Q$68:Q$69)-204 -> ₪ 6.07 | N92: ₪ 0.00 | O92: 20.00%
M93: =NPV(O93,$Q$68:Q$69)-204 -> ₪ 3.98 | N93: ₪ -3.02 | O93: 21.00%
M94: =NPV(O94,$Q$68:Q$69)-204 -> ₪ 1.93 | N94: ₪ -5.97 | O94: 22.00%
M95: =NPV(O95,$Q$68:Q$69)-204 -> ₪ -0.09 | N95: ₪ -8.84 | O95: 23.00%
M96: =NPV(O96,$Q$68:Q$69)-204 -> ₪ -2.06 | N96: ₪ -11.65 | O96: 24.00%
M97: =NPV(O97,$Q$68:Q$69)-204 -> ₪ -4.00 | N97: ₪ -14.40 | O97: 25.00%
M98: =NPV(O98,$Q$68:Q$69)-204 -> ₪ -5.90 | N98: ₪ -17.08 | O98: 26.00%
L104: להלן מפורטים נתונים לגבי 3 חלופות שונות להשקעה בפרויקטים אשר אינם מוציאים זה את זה:
F105: שאלה 3 | I105: 20.00% | J105: 0.00% | K105: 5.00% | L105: IRR | M105: 0 | N105: 1 | O105: 2 | P105: 3
I106: =NPV(I105,N106:P106)-2000 -> -421.30 | J106: =NPV(J105,N106:P106)-2000 -> 600.00 | K106: =NPV(K105,N106:P106)-2000 -> 272.32 | L106: 10% | M106: 2,000- | N106: 200 | O106: 200 | P106: 2200 | Q106: A
I107: =NPV(I105,N107:P107)-1400 -> ₪ -85.19 | J107: =NPV(J105,N107:P107)-1400 -> ₪ 400.00 | K107: =NPV(K105,N107:P107)-1400 -> ₪ 251.66 | L107: 15.60% | M107: 1400- | N107: 800 | O107: 600 | P107: 400 | Q107: B
I108: =NPV(I105,N108:P108)-4000 -> ₪ -1,106.48 | J108: =NPV(J105,N108:P108)-4000 -> ₪ 1,000.00 | K108: =NPV(K105,N108:P108)-4000 -> ₪ 319.19 | L108: =IRR(R110:R113) -> 8% | M108: 4000- | N108: 0 | O108: 0 | P108: 5000 | Q108: C
L110: להלן מובאות מספר טענות: 1. אם מחיר ההון הינו 5%, ההשקעה בעלת ה-IRR הנמוך ביותר היא גם הכדאית ביותר. 2. אם מחיר ההון הינו 0%, כל ההשקעות הן בעלות NPV חיובי. 3. אם מחיר ההון הינו 20%, כדי להשקיע בפרויקט B. סמנו את התשובה הנכונה ביותר א. רק טענות 1 ו-2 נכונות. ב. רק טענות 1 ו-3 נכונות. ג. רק טענות 2 ו-3 נכונות. ד. כל הטענות נכונות. ה. כל הטענות האחרות אינן נכונות. | R110: -4,000
R111: 0
R112: 0
R113: =P108 -> 5000
L158: מוצע בפניכם הפרויקט הבא:
I160: שאלה 4 | K160: 5.00% | L160: 0 | M160: 1 | N160: 2 | O160: ... | P160: 50
L161: -600 | M161: 36 | N161: 36 | O161: ... | P161: 36
I162: 50 | J162: 1 | K162: =NPV(K160,I162:I211)-600 -> 312.796273 | L162: =K162/K163 -> 0.5213271217
I163: 50 | J163: 2 | K163: 600 | L163: בהנחה והריבית השנתית הינה 5%
I164: 50 | J164: 3 | L164: חשב את הענ"נ בפרויקט וקבע האם ההשקעה כדאית
I165: 50 | J165: 4
I166: 50 | J166: 5
I167: 50 | J167: 6
I168: 50 | J168: 7
I169: 50 | J169: 8
I170: 50 | J170: 9
I171: 50 | J171: 10
I172: 50 | J172: 11
I173: 50 | J173: 12
I174: 50 | J174: 13
I175: 50 | J175: 14
I176: 50 | J176: 15
I177: 50 | J177: 16
I178: 50 | J178: 17
I179: 50 | J179: 18
I180: 50 | J180: 19
I181: 50 | J181: 20
I182: 50 | J182: 21
I183: 50 | J183: 22
I184: 50 | J184: 23
I185: 50 | J185: 24
I186: 50 | J186: 25
I187: 50 | J187: 26
I188: 50 | J188: 27
I189: 50 | J189: 28
I190: 50 | J190: 29
I191: 50 | J191: 30
I192: 50 | J192: 31
I193: 50 | J193: 32
I194: 50 | J194: 33
I195: 50 | J195: 34
I196: 50 | J196: 35
I197: 50 | J197: 36
I198: 50 | J198: 37
I199: 50 | J199: 38
I200: 50 | J200: 39
I201: 50 | J201: 40
I202: 50 | J202: 41
I203: 50 | J203: 42
I204: 50 | J204: 43
I205: 50 | J205: 44
I206: 50 | J206: 45
I207: 50 | J207: 46
I208: 50 | J208: 47
I209: 50 | J209: 48
I210: 50 | J210: 49
I211: 50 | J211: 50
I231: שאלה 5 | L231: חברת: "אופיר מאגדי-הכנה לבחינות" ניצבת בפני שתי תוכניות השקעה, חד פעמיות המוציאות זו את זו.
L232: ידוע כי מחיר ההון של החברה עומד על 4% ורשמי המזומנים (באלפי ₪) הצפויים מכל תכנית הינם:
L233: 0 | M233: 1 | N233: 2 | O233: 3 | P233: 4 | Q233: 5 | R233: year | S233: 5.00%
L234: -90 | M234: 26 | N234: 26 | O234: 26 | P234: 26 | Q234: 26 | R234: A | S234: =NPV(S233,T240:T244)-90 -> 22.57 | T234: =IRR(T239:T244) -> 14%
L235: -42 | M235: 14 | N235: 14 | O235: 14 | P235: 14 | Q235: 14 | R235: B | S235: =NPV(S233,S240:S244)-42 -> 18.61 | T235: =IRR(S239:S244) -> 20%
L237: א. חשב לכל תכנית את הענ"נ והשת"פ
L238: ב. ציין איזו תכנית עדיפה | S238: B | T238: A
S239: -42 | T239: -90
R240: 14 | S240: 14 | T240: 26
S241: 14 | T241: 26
S242: 14 | T242: 26
S243: 14 | T243: 26
S244: 14 | T244: 26
L274: להלן תזרים מזומנים של פרויקט כלשהו:
I281: שאלה 6 | O281: 10.00%
L282: 0 | M282: 1 | N282: 2 | O282: פרויקט
L283: -21 | M283: 47 | N283: 24 | O283: A | P283: =IRR(T283:T285) -> 167% | Q283: =NPV(O281,T284:T285)-21 -> 41.56 | T283: -21
T284: 47
L285: א. חשב את ש.ת.פ הפרויקט ב. הנח כי עלות ההון שלך הינה 10% ענה מבלי לחשב האם הפרויקט כדאי ומדוע? ג. בהמשך לסעיף ב' מה יהיה הערך הנוכחי של ההשקעה? | T285: 24

Sheet דוגמאות מרצה שאלות 7-11
E4: שאלה 7
I9: נתונים
I11: -200 | J11: השקעה | K11: 0 | L11: 1 | M11: 2 | N11: 3
I12: 160 | J12: תקבול שנה 1 | K12: 200- | L12: 160 | M12: 180 | N12: 140
I13: 180 | J13: תקבול שנה 2
I14: 140 | J14: תקבול שנה 3
I16: 8% | J16: r | K16: ריבית שנתית
J19: =NPV(I16,I12:I14)+I11 -> ₪ 213.61 | K19: ערך נוכחי נקי (NPV)
J20: =IRR(I11:I14) -> 62%
J21: =IF(J19>0,"כדאי",IF(J19<0,"לא כדאי","אדיש")) -> כדאי | K21: האם הפרויקט כדאי?
E31: שאלה 8
I38: נתונים | J38: 0 | K38: 1 | L38: 2 | M38: .... | N38: 30
I39: דרך 1 | J39: 800- | K39: 40 | L39: 40 | M39: 40 | N39: 40
I41: -800 | J41: I0 | K41: השקעה
I42: -40 | J42: PMT | K42: תקבול שנתי
I43: 30 | J43: n | K43: מספר שנים
I44: 12% | J44: r | K44: ריבית שנתית
I45: 0 | J45: Type | K45: תחילת / סוף שנה
J47: =PV(I44,I43,I42,,)-800 -> ₪ -477.79 | K47: ערך נוכחי נקי (NPV)
I49: דרך 2
I51: -800 | J51: השקעה
I52: 40 | J52: תקבול שנה 1
I53: 40 | J53: תקבול שנה 2
I54: 40 | J54: תקבול שנה 3
I55: 40 | J55: תקבול שנה 4
I56: 40 | J56: תקבול שנה 5
I57: 40 | J57: תקבול שנה 6
I58: 40 | J58: תקבול שנה 7
I59: 40 | J59: תקבול שנה 8
I60: 40 | J60: תקבול שנה 9
I61: 40 | J61: תקבול שנה 10
I62: 40 | J62: תקבול שנה 11
I63: 40 | J63: תקבול שנה 12
I64: 40 | J64: תקבול שנה 13
I65: 40 | J65: תקבול שנה 14
I66: 40 | J66: תקבול שנה 15
I67: 40 | J67: תקבול שנה 16
I68: 40 | J68: תקבול שנה 17
I69: 40 | J69: תקבול שנה 18
I70: 40 | J70: תקבול שנה 19
I71: 40 | J71: תקבול שנה 20
I72: 40 | J72: תקבול שנה 21
I73: 40 | J73: תקבול שנה 22
I74: 40 | J74: תקבול שנה 23
I75: 40 | J75: תקבול שנה 24
I76: 40 | J76: תקבול שנה 25
I77: 40 | J77: תקבול שנה 26
I78: 40 | J78: תקבול שנה 27
I79: 40 | J79: תקבול שנה 28
I80: 40 | J80: תקבול שנה 29
I81: 40 | J81: תקבול שנה 30
I83: 12% | J83: r | K83: ריבית שנתית
J85: =NPV(I83,I52:I81)+I51 -> ₪ -477.79 | K85: ערך נוכחי נקי (NPV)
J87: =IF(J85>0,"כדאי",IF(J85<0,"לא כדאי","אדיש")) -> לא כדאי | K87: האם הפרויקט כדאי?
E99: שאלה 9
I106: נתונים | J106: 0 | K106: 1 | L106: 2 | M106: 3 | N106: 4 | O106: 5 | P106: 6 | Q106: 7 | R106: 8
I107: סעיף א' | J107: 500- | K107: 90 | L107: 70 | M107: 60 | N107: 50 | O107: 30 | P107: 100 | Q107: 0 | R107: 900
I109: -500 | J109: השקעה
I110: 90 | J110: תקבול שנה 1
I111: 70 | J111: תקבול שנה 2
I112: 60 | J112: תקבול שנה 3
I113: 50 | J113: תקבול שנה 4
I114: 30 | J114: תקבול שנה 5
I115: 100 | J115: תקבול שנה 6
I116: 0 | J116: תקבול שנה 7
I117: 900 | J117: תקבול שנה 8
J119: =IRR(I109:I117) -> 17.05% | K119: שיעור תשואה פנימי (IRR)
I121: סעיף ב'
I123: 11% | J123: r | K123: ריבית שנתית
J124: =NPV(I123,I110:I117)-500 -> 176.50
J125: =IF(J119>I123,"כדאי","לא כדאי") -> כדאי | K125: האם הפרויקט כדאי?
E136: שאלה 10
I141: פרויקט | J141: 0 | K141: 1 | L141: 2 | M141: 3 | N141: IRR
I142: A | J142: 200- | K142: 120 | L142: 120 | M142: 120 | N142: 36.31%
I143: B | J143: 100- | K143: 80 | L143: 80 | M143: 80 | N143: 60.73%
I146: נתונים
I148: פרויקט B | J148: פרויקט A
I149: -100 | J149: -200
I150: 80 | J150: 120
I151: 80 | J151: 120
I152: 80 | J152: 120
I154: NPV (B) | J154: NPV (A) | K154: עלות ההון
I155: =NPV($K155,I$150:I$152)+I$149 -> 140.00 | J155: =NPV($K155,J$150:J$152)+J$149 -> 160.00 | K155: 0%
I156: 135.28 | J156: 152.92 | K156: 1%
I157: 130.71 | J157: 146.07 | K157: 2%
I158: 126.29 | J158: 139.43 | K158: 3%
I159: 122.01 | J159: 133.01 | K159: 4%
I160: 117.86 | J160: 126.79 | K160: 5%
I161: 113.84 | J161: 120.76 | K161: 6%
I162: 109.95 | J162: 114.92 | K162: 7%
I163: 106.17 | J163: 109.25 | K163: 8%
I164: 102.50 | J164: 103.76 | K164: 9% | M164: סעיף א'
I165: 100.00 | J165: 100.00 | K165: 9.701%
I166: 98.95 | J166: 98.42 | K166: 10% | M166: כאשר עלות ההון היא 5% פרויקט A עדיף (NPV גבוה יותר) - הגרף הירוק
I167: 95.50 | J167: 93.25 | K167: 11%
I168: 92.15 | J168: 88.22 | K168: 12%
I169: 88.89 | J169: 83.34 | K169: 13% | M169: סעיף ב'
I170: 85.73 | J170: 78.60 | K170: 14%
I171: 82.66 | J171: 73.99 | K171: 15% | M171: כאשר עלות ההון היא 9.7% קיימת אדישות בין הפרויקטים כיון שהענ"נ של שניהם זהה.
I172: 79.67 | J172: 69.51 | K172: 16%
I173: 76.77 | J173: 65.15 | K173: 17%
I174: 73.94 | J174: 60.91 | K174: 18% | M174: סעיף ג'
I175: =NPV($K175,I$150:I$152)+I$149 -> 71.19 | J175: 56.79 | K175: 19%
I176: 68.52 | J176: 52.78 | K176: 20% | M176: כאשר עלות ההון נעה 9.7% ל-60.73%, פרויקט B עדיף (NPV גבוה יותר) - הגרף האדום
I177: 65.91 | J177: 48.87 | K177: 21%
I178: 63.38 | J178: 45.07 | K178: 22%
I179: 60.91 | J179: 41.36 | K179: 23%
I180: 58.50 | J180: 37.76 | K180: 24%
I181: 56.16 | J181: 34.24 | K181: 25%
I182: 53.88 | J182: 30.81 | K182: 26%
I183: 51.65 | J183: 27.47 | K183: 27%
I184: 49.48 | J184: 24.21 | K184: 28%
I185: 47.36 | J185: 21.03 | K185: 29%
I186: 45.29 | J186: 17.93 | K186: 30%
I187: 43.27 | J187: 14.91 | K187: 31%
I188: 41.30 | J188: 11.95 | K188: 32%
I189: 39.38 | J189: 9.07 | K189: 33%
I190: 37.50 | J190: 6.26 | K190: 34%
I191: 35.67 | J191: 3.51 | K191: 35%
I192: 33.33 | J192: -0.00 | K192: 36.31%
I193: 33.88 | J193: 0.82 | K193: 36%
I194: 32.13 | J194: -1.81 | K194: 37%
I195: =NPV($K195,I$150:I$152)+I$149 -> 30.42 | J195: -4.37 | K195: 38%
I196: 28.75 | J196: -6.88 | K196: 39%
I197: 27.11 | J197: -9.33 | K197: 40%
I198: 25.52 | J198: -11.73 | K198: 41%
I199: 23.95 | J199: -14.07 | K199: 42%
I200: 22.42 | J200: -16.36 | K200: 43%
I201: 20.93 | J201: -18.61 | K201: 44%
I202: 19.46 | J202: -20.80 | K202: 45%
I203: 18.03 | J203: -22.95 | K203: 46%
I204: 16.63 | J204: -25.06 | K204: 47%
I205: 15.25 | J205: -27.12 | K205: 48%
I206: 13.91 | J206: -29.14 | K206: 49%
I207: 12.59 | J207: -31.11 | K207: 50%
I208: 11.30 | J208: -33.05 | K208: 51%
I209: 10.04 | J209: -34.94 | K209: 52%
I210: 8.80 | J210: -36.80 | K210: 53%
I211: 7.58 | J211: -38.62 | K211: 54%
I212: 6.39 | J212: -40.41 | K212: 55%
I213: 5.23 | J213: -42.16 | K213: 56%
I214: 4.08 | J214: -43.87 | K214: 57%
I215: =NPV($K215,I$150:I$152)+I$149 -> 2.96 | J215: -45.56 | K215: 58%
I216: 1.86 | J216: -47.21 | K216: 59%
I217: 0.78 | J217: -48.83 | K217: 60%
I218: 0.01 | J218: -49.99 | K218: 60.73%
I219: -0.28 | J219: -50.42 | K219: 61%
I220: -1.32 | J220: -51.98 | K220: 62%
I221: -2.34 | J221: -53.51 | K221: 63%
I222: -3.34 | J222: -55.01 | K222: 64%
I223: -4.32 | J223: -56.48 | K223: 65%
I224: -5.29 | J224: -57.93 | K224: 66%
I225: -6.23 | J225: -59.35 | K225: 67%
I226: -7.16 | J226: -60.75 | K226: 68%
I227: -8.08 | J227: -62.12 | K227: 69%
I228: -8.98 | J228: -63.46 | K228: 70%
E234: שאלה 11
I240: כל הנתונים באלפי ₪:
I241: 10% | J241: r | K241: עלות ההון
I242: 500 | K242: מגבלה תקציבית
I244: פרויקט | J244: 0 | K244: 1 | L244: 2 | M244: 3 | N244: 4 | O244: NPV | P244: PI
I245: D | J245: -50 | K245: 0 | L245: 0 | M245: 120 | N245: 0 | O245: 40 | P245: =O245/-J245 -> 0.8
I246: A | J246: -100 | K246: 100 | L246: 0 | M246: 100 | N246: 0 | O246: 66 | P246: =O246/-J246 -> 0.66
I247: B | J247: -150 | K247: 0 | L247: 100 | M247: 0 | N247: 200 | O247: 69 | P247: 0.46
I248: C | J248: -300 | K248: 300 | L248: 0 | M248: 200 | N248: 0 | O248: 123 | P248: 0.41
I249: E | J249: -500 | K249: 0 | L249: 0 | M249: 400 | N249: 500 | O249: 142 | P249: 0.284
I251: הפרויקט הנבחר | J251: PI | K251: סכום ההשקעה | L251: הענ"נ שמתקבל | M251: הסכום שנותר להשקעה
I252: D | J252: 0.8 | K252: 50 | L252: 40 | M252: =I242-K252 -> 450
I253: A | J253: 0.66 | K253: 100 | L253: 66 | M253: =M252-K253 -> 350
I254: B | J254: 0.46 | K254: 150 | L254: 69 | M254: =M253-K254 -> 200
I255: C | J255: 0.41 | K255: 200 | L255: =(K255/-J248)*O248 -> 82 | M255: 0
I256: סה"כ | L256: =SUM(L252:L255) -> 257

Sheet תרגול עצמי שאלות 12-15
I1: קריטריונים לבחינת כדאיות השקעה - תרגול עצמי
F4: שאלה 12 | L4: 5
L5: 0
L6: 600
I9: נתונים
I10: סעיף א'
I12: 5% | J12: r | K12: עלות ההון
I14: פרויקט ב' | J14: פרויקט א'
I15: -1000 | J15: -750 | K15: השקעה
I16: 300 | J16: 0 | K16: תקבול שנה 1
I17: 300 | J17: 0 | K17: תקבול שנה 2
I18: 300 | J18: 1000 | K18: תקבול שנה 3
I19: 300 | J19: 0 | K19: תקבול שנה 4
I20: 300 | J20: 0 | K20: תקבול שנה 5
I22: =NPV(I12,I16:I20)-1000 -> ₪ 298.84 | J22: =NPV(I12,J16:J20)-750 -> ₪ 113.84 | K22: ערך נוכחי נקי (NPV)
I23: =IRR(I15:I20) -> 15% | J23: =IRR(J15:J20) -> 10% | K23: IRR
I24: =I22/-I15 -> 0.2988430012 | J24: =J22/-J15 -> 0.1517834647 | K24: PI
I25: סעיף ב'
J27: =IF(J22>I22,"פרויקט א","פרויקט ב'") -> פרויקט ב' | K27: איזה פרויקט עדיף?
R34: שנה
F35: שאלה 13 | R35: תוכנית א'
R36: תוכנית ב'
I41: נתונים | J41: 5 | K41: 4 | L41: 3 | M41: 2 | N41: 1 | O41: 0
J42: 32 | K42: 32 | L42: 32 | M42: 32 | N42: 32 | O42: -100
I43: סעיף א' | J43: 24 | K43: 24 | L43: 24 | M43: 24 | N43: 24 | O43: -64
I45: 6% | J45: r | K45: עלות ההון
I47: תוכנית ב' | J47: תוכנית א'
I48: -64 | J48: -100 | K48: השקעה
I49: 24 | J49: 32 | K49: תקבול שנה 1
I50: 24 | J50: 32 | K50: תקבול שנה 2
I51: 24 | J51: 32 | K51: תקבול שנה 3
I52: 24 | J52: 32 | K52: תקבול שנה 4
I53: 24 | J53: 32 | K53: תקבול שנה 5
I55: =NPV($I$45,I49:I53)+I48 -> ₪ 37.10 | J55: =NPV($I$45,J49:J53)+J48 -> ₪ 34.80 | K55: ערך נוכחי נקי (NPV)
I56: =IRR(I48:I53) -> 25.41% | J56: =IRR(J48:J53) -> 18.03% | K56: שיעור תשואה פנימי (IRR)
I59: סעיף ב'
J62: =IF(J55>I55,"תוכנית א'","תוכנית ב'") -> תוכנית ב' | K62: איזו תוכנית עדיפה?
I64: אמנם קיימת סתירה בין קריטריון הענ"נ לקריטריון השת"פ אולם, תמיד נפעל על בסיס קריטריון הענ"נ
F71: שאלה 14
I75: נתונים | J75: פרויקט B | K75: פרויקט A
J76: -100 | K76: -200
J77: 120 | K77: 100
J78: 80 | K78: 200
J79: =IRR(J76:J78) -> 67.70% | K79: =IRR(K76:K78) -> 28%
J80: NPV (B) | K80: NPV (A) | L80: עלות ההון
J81: =NPV(L81,$J$77:$J$78)-100 -> 100.00 | K81: =NPV(L81,$K$77:$K$78)-200 -> 100.00 | L81: 0%
J82: =NPV(L82,$J$77:$J$78)-100 -> 97.24 | K82: =NPV(L82,$K$77:$K$78)-200 -> 95.07 | L82: 1%
J83: 94.54 | K83: 90.27 | L83: 2%
J84: 91.91 | K84: 85.61 | L84: 3%
J85: 89.35 | K85: 81.07 | L85: 4%
J86: 86.85 | K86: 76.64 | L86: 5%
J87: 84.41 | K87: 72.34 | L87: 6%
J88: 82.02 | K88: 68.15 | L88: 7%
J89: 79.70 | K89: 64.06 | L89: 8%
J90: 77.43 | K90: 60.08 | L90: 9%
J91: 75.21 | K91: 56.20 | L91: 10%
J92: 73.04 | K92: 52.41 | L92: 11%
J93: 70.92 | K93: 48.72 | L93: 12%
J94: 68.85 | K94: 45.12 | L94: 13%
J95: 66.82 | K95: 41.61 | L95: 14%
B96: פרויקט B עדיף בכל עלות הון (אך עד עלות של 67.703%) | J96: 64.84 | K96: 38.19 | L96: 15%
B97: כאשר עלות ההון מעל 67.703% לא נבחר באף אחד מהפרויקטים | J97: 62.90 | K97: 34.84 | L97: 16%
J98: 61.01 | K98: 31.57 | L98: 17%
J99: 59.15 | K99: 28.38 | L99: 18%
J100: 57.33 | K100: 25.27 | L100: 19%
J101: 55.56 | K101: 22.22 | L101: 20%
J102: 53.81 | K102: 19.25 | L102: 21%
J103: 52.11 | K103: 16.34 | L103: 22%
J104: 50.44 | K104: 13.50 | L104: 23%
J105: 48.80 | K105: 10.72 | L105: 24%
J106: 47.20 | K106: 8.00 | L106: 25%
J107: 45.63 | K107: 5.34 | L107: 26%
J108: 44.09 | K108: 2.74 | L108: 27%
J109: 42.58 | K109: 0.20 | L109: 28%
J110: 42.46 | K110: 0.00 | L110: 28.078%
J111: 41.10 | K111: -2.30 | L111: 29%
J112: 39.64 | K112: -4.73 | L112: 30%
J113: 38.22 | K113: -7.12 | L113: 31%
J114: 36.82 | K114: -9.46 | L114: 32%
J115: 35.45 | K115: -11.75 | L115: 33%
J116: 34.11 | K116: -13.99 | L116: 34%
J117: 32.78 | K117: -16.19 | L117: 35%
J118: 31.49 | K118: -18.34 | L118: 36%
J119: 30.21 | K119: -20.45 | L119: 37%
J120: 28.96 | K120: -22.52 | L120: 38%
J121: 27.74 | K121: -24.54 | L121: 39%
J122: 26.53 | K122: -26.53 | L122: 40%
J123: 25.35 | K123: -28.48 | L123: 41%
J124: 24.18 | K124: -30.39 | L124: 42%
J125: 23.04 | K125: -32.27 | L125: 43%
J126: 21.91 | K126: -34.10 | L126: 44%
J127: 20.81 | K127: -35.91 | L127: 45%
J128: 19.72 | K128: -37.68 | L128: 46%
J129: 18.65 | K129: -39.42 | L129: 47%
J130: 17.60 | K130: -41.12 | L130: 48%
J131: 16.57 | K131: -42.80 | L131: 49%
J132: 15.56 | K132: -44.44 | L132: 50%
J133: 14.56 | K133: -46.06 | L133: 51%
J134: 13.57 | K134: -47.65 | L134: 52%
J135: 12.61 | K135: -49.20 | L135: 53%
J136: 11.65 | K136: -50.73 | L136: 54%
J137: 10.72 | K137: -52.24 | L137: 55%
J138: 9.80 | K138: -53.71 | L138: 56%
J139: 8.89 | K139: -55.17 | L139: 57%
J140: 8.00 | K140: -56.59 | L140: 58%
J141: 7.12 | K141: -58.00 | L141: 59%
J142: 6.25 | K142: -59.38 | L142: 60%
J143: 5.40 | K143: -60.73 | L143: 61%
J144: 4.56 | K144: -62.06 | L144: 62%
J145: 3.73 | K145: -63.37 | L145: 63%
J146: =NPV(L146,$J$77:$J$78)-100 -> 2.91 | K146: =NPV(L146,$K$77:$K$78)-200 -> -64.66 | L146: 64%
J147: 2.11 | K147: -65.93 | L147: 65%
J148: 1.32 | K148: -67.18 | L148: 66%
J149: 0.54 | K149: -68.41 | L149: 67%
J150: -0.23 | K150: -69.61 | L150: 68%
J151: 0.00 | K151: -69.26 | L151: 67.703%
J152: -0.98 | K152: -70.80 | L152: 69%
J153: -1.73 | K153: -71.97 | L153: 70%
F161: שאלה 15
I166: נתונים
I168: 600000 | K168: מגבלה תקציבית
I170: פרויקט | J170: השקעה ראשונית | K170: ערך נוכחי נקי | L170: PI
I171: B | J171: -150000 | K171: 114000 | L171: =K171/-J171 -> 0.76
I172: A | J172: -50000 | K172: 35000 | L172: =K172/-J172 -> 0.7
I173: C | J173: -100000 | K173: 56000 | L173: 0.56
I174: D | J174: -500000 | K174: 155000 | L174: 0.31
I175: E | J175: -300000 | K175: 88000 | L175: 0.2933333333
I178: הפרויקט הנבחר | J178: PI | K178: סכום ההשקעה | L178: הענ"נ שמתקבל | M178: הסכום שנותר להשקעה
I179: B | J179: 0.76 | K179: 150000 | L179: 114000 | M179: =I168-K179 -> 450000
I180: A | J180: 0.7 | K180: 50000 | L180: 35000 | M180: =M179-K180 -> 400000
I181: C | J181: 0.56 | K181: 100000 | L181: 56000 | M181: =M180-K181 -> 300000
I182: D | J182: 0.31 | K182: =M181 -> 300000 | L182: =(K182/(-J174))*K174 -> 93000 | M182: =M181-K182 -> 0
I183: סה"כ | L183: =SUM(L179:L182) -> 298000

Sheet פתרון תרגיל בית שאלות 16-18
E6: לפנייך 2 פרוייקטים, מחיר ההון השנתי 8%
C7: שאלה 16
E8: נתונים:
E9: פרויקט | F9: 0 | G9: 1 | H9: 2 | I9: 3 | J9: 4 | K9: 5
E10: A | F10: -64,000 | G10: 20,000 | H10: =G10 -> 20,000 | I10: =H10 -> 20,000 | J10: =I10 -> 20,000 | K10: =J10 -> 20,000
E11: B | F11: -35,000 | G11: 15,000 | H11: 15,000 | I11: 15,000 | J11: 15,000 | K11: 15,000
F13: 8.00% | G13: r (year) | H13: נתון | J13: B | K13: A
J14: -35000 | K14: -64000
E15: א. חשב את הערך הנוכחי לשני הפרוייקטים | J15: 15000 | K15: 20000
E16: ב. מה שת"פ הפרוייקטים? | J16: 15000 | K16: 20000
E17: ג. איזה פרוייקט עדיף לפי כל קריטריון? | J17: 15000 | K17: 20000
J18: 15000 | K18: 20000
J19: 15000 | K19: 20000
I20: NPV | J20: =NPV(F13,J15:J19)-35000 -> 24890.65056 | K20: =NPV(F13,K15:K19)-64000 -> 15854.20074
I21: IRR | J21: =IRR(J14:J19) -> 32% | K21: =IRR(K14:K19) -> 17%
E39: ידוע כי החברה אדישה לגבי פרויקט C
E40: נתונים:
B41: שאלה 17 | E41: פרויקט | F41: 0 | G41: 1 | H41: 2 | I41: 3 | J41: IRR | K41: NPV
E42: A | F42: -700 | G42: 0 | H42: 0 | I42: 900 | J42: =IRR(H51:H54) -> 8.74% | K42: =NPV(J44,H52:H54)-700 -> 14.44901692
E43: B | F43: -1000 | G43: 0 | H43: 0 | I43: 1331 | J43: =IRR(I51:I54) -> 10.00% | K43: =NPV(J44,I52:I54)-1000 -> 56.5907128
E44: C | F44: -1000 | G44: 1080 | J44: =IRR(J51:J52) -> 8.00%
E46: א. חשב את הערך הנוכחי לשני הפרוייקטים הראשונים
E47: ב. מה שת"פ הפרוייקטים?
E48: ג. איזה פרוייקט עדיף לפי כל קריטריון?
H50: A | I50: B | J50: C
H51: -700 | I51: -1000 | J51: -1000
H52: 0 | I52: 0 | J52: 1080
H53: 0 | I53: 0
H54: 900 | I54: 1331
E71: לפנייך הפרויקט הבא:
B73: שאלה 18 | E73: פרויקט | F73: 0 | G73: 1 | H73: 2
E74: A | F74: -42 | G74: 94 | H74: 48
J75: A
E76: א. חשב את שת"פ הפרויקט | J76: -42
E77: ב. האם בריבית של 20% הפרויקט רווחי? | J77: 94
J78: 48
J79: =IRR(J76:J78) -> 167% | K79: IRR
H80: 170.00% | J80: =NPV(H80,J77:J78)-42 -> -0.6008230453 | K80: NPV
